fUST/lending_fUST_20241025
["ID","MTS","AMOUNT","RATE_DAILY","PERIOD"]
[340792021,1729829444497,-500.0,0.00013698,2]
[340792022,1729829444508,-500.0,0.00013698,2]
[340792023,1729829444519,-500.0,0.00013698,2]
[340792024,1729829444530,-565.85427693,0.00013698,2]
[340792025,1729829444540,-544.099539,0.00013698,2]
[340792026,1729829444550,-544.099539,0.00013698,2]
[340792027,1729829444560,-730.84,0.00013698,2]
[340792028,1729829444570,-544.099539,0.00013698,2]
[340792029,1729829444582,-544.099539,0.00013698,2]
[340792030,1729829444592,-500.0,0.00013698,2]
[340792031,1729829444602,-500.0,0.00013698,2]
[340792032,1729829444612,-500.0,0.00013698,2]
[340792033,1729829444622,-513.93265286,0.00013698,2]
[340792034,1729829444632,-513.79,0.00013698,2]
[340792035,1729829444641,-6175.98,0.00013698,2]
[340792036,1729829444650,-934.98,0.00013698,2]
[340792037,1729829444660,-151.0,0.00013698,2]
[340792038,1729829444670,-151.0,0.00013698,2]
[340792039,1729829444679,-1427.87,0.00013698,2]
[340792040,1729829444689,-151.0,0.00013698,2]
[340792041,1729829444701,-500.0,0.00013698,2]
[340792042,1729829444711,-151.0,0.00013698,2]
[340792043,1729829444720,-151.0,0.00013698,2]
[340792044,1729829444730,-151.0,0.00013698,2]
[340792045,1729829444739,-2607.04,0.00013698,2]
[340792046,1729829444749,-13049.57,0.00013698,2]
[340792047,1729829444759,-505.68,0.00013698,2]
[340792048,1729829444769,-1867.7,0.00013698,2]
[340792049,1729829444780,-500.0,0.00013698,2]
[340792050,1729829444790,-789.57,0.00013698,2]
[340792051,1729829444800,-500.0,0.00013698,2]
[340792052,1729829444810,-1191.54,0.00013698,2]
[340792053,1729829444820,-500.0,0.00013698,2]
[340792054,1729829444830,-4503.45,0.00013698,2]
[340792055,1729829444840,-165.084137,0.00013698,2]
[340792056,1729829444849,-165.084137,0.00013698,2]
[340792057,1729829444859,-1566.02,0.00013698,2]
[340792058,1729829444868,-760.52,0.00013698,2]
[340792059,1729829444878,-253.782746,0.00013698,2]
[340792060,1729829444887,-253.782746,0.00013698,2]
[340792061,1729829444897,-151.0,0.00013698,2]
[340792062,1729829444907,-151.0,0.00013698,2]
[340792063,1729829444917,-165.084137,0.00013698,2]
[340792064,1729829444927,-165.084137,0.00013698,2]
[340792065,1729829444937,-253.782746,0.00013698,2]
[340792066,1729829444947,-500.0,0.00013698,2]
[340792067,1729829444956,-253.782746,0.00013698,2]
[340792068,1729829444966,-218.987046,0.00013698,2]
[340792069,1729829444976,-500.0,0.00013698,2]
[340792070,1729829444986,-634.49,0.00013698,2]
[340792071,1729829444996,-1492.9,0.00013698,2]
[340792072,1729829445006,-500.0,0.00013698,2]
[340792073,1729829445015,-500.0,0.00013698,2]
[340792074,1729829445025,-952.66,0.00013698,2]
[340792075,1729829445035,-500.0,0.00013698,2]
[340792076,1729829445045,-724.45,0.00013698,2]
[340792077,1729829445055,-1246.59,0.00013698,2]
[340792078,1729829445064,-500.0,0.00013698,2]
[340792079,1729829445074,-500.0,0.00013698,2]
[340792080,1729829445084,-780.64,0.00013698,2]
[340792081,1729829445103,-151.0,0.00013698,2]
[340792082,1729829445114,-3621.84,0.00013698,2]
[340792083,1729829445125,-151.0,0.00013698,2]
[340792084,1729829445135,-1111.15,0.00013698,2]
[340792085,1729829445145,-500.0,0.00013698,2]
[340792086,1729829445155,-500.0,0.00013698,2]
[340792087,1729829445164,-1177.24,0.00013698,2]
[340792089,1729829445174,-565.69,0.00013698,2]
[340792090,1729829445184,-500.0,0.00013698,2]
[340792091,1729829445193,-3712.83,0.00013698,2]
[340792092,1729829445203,-1293.73,0.00013698,2]
[340792093,1729829445212,-465.25868897,0.00013698,2]
[340792094,1729829445222,-151.0,0.00013698,2]
[340792095,1729829445231,-500.0,0.00013698,2]
[340792096,1729829445241,-151.0,0.00013698,2]
[340792097,1729829445250,-1830.74,0.00013698,2]
[340792098,1729829445261,-609.25,0.00013698,2]
[340792099,1729829445270,-197.76126,0.00013698,2]
[340792100,1729829445279,-1093.28,0.00013698,2]
[340792101,1729829445289,-197.76126,0.00013698,2]
[340792102,1729829445299,-202.26622897,0.00013698,2]
[340792103,1729829445308,-197.76126,0.00013698,2]
[340792104,1729829445318,-197.76126,0.00013698,2]
[340792105,1729829445328,-151.0,0.00013698,2]
[340792106,1729829445340,-1080.3,0.00013698,2]
[340792107,1729829445350,-151.0,0.00013698,2]
[340792108,1729829445360,-2620.064115,0.00013698,2]
[340792109,1729829445370,-3187.83,0.00013698,2]
[340792110,1729829445380,-981.36,0.00013698,2]
[340792111,1729829445391,-890.64,0.00013698,2]
[340792112,1729829445401,-625.0,0.00013698,2]
[340792113,1729829445412,-500.0,0.00013698,2]
[340792114,1729829445422,-866.58,0.00013698,2]
[340792115,1729829445431,-1258.84,0.00013698,2]
[340792116,1729829445440,-1568.51,0.00013698,2]
[340792117,1729829445449,-500.0,0.00013698,2]
[340792118,1729829445459,-746.46,0.00013698,2]
[340792119,1729829445470,-177.663631,0.00013698,2]
[340792120,1729829445480,-537.02,0.00013698,2]
[340792122,1729829445489,-151.0,0.00013699,2]
[340792124,1729829445498,-2760.88809,0.00013699,2]
[340792125,1729829445508,-4394.089523,0.00013699,2]
[340792126,1729829445518,-500.0,0.00013699,2]
[340792127,1729829445528,-500.0,0.00013699,2]
[340792128,1729829445537,-500.0,0.00013699,2]
[340792129,1729829445547,-500.0,0.00013699,2]
[340792130,1729829445556,-205.33515871,0.00013699,2]
[340792131,1729829445565,-151.0,0.00013699,2]
[340792132,1729829445575,-150.112233,0.000137,2]
[340792133,1729829445588,-306.0,0.000137,2]
[340792135,1729829445598,-528.0,0.00013708,2]
[340792137,1729829445607,-2397.0,0.00013708,2]
[340792138,1729829445617,-1151.0,0.00013708,2]
[340792139,1729829445626,-420.0,0.00013718,2]
[340792140,1729829445637,-232.0,0.0001373,2]
[340792142,1729829445646,-154.0,0.0001375,2]
[340792143,1729829445656,-150.112233,0.000138,2]
[340792144,1729829445667,-150.112233,0.000138,2]
[340792145,1729829445677,-233.553813,0.000138,2]
[340792146,1729829445686,-150.112233,0.000138,2]
[340792147,1729829445699,-150.112233,0.000138,2]
[340792149,1729829445710,-150.112234,0.000138,2]
[340792150,1729829445719,-10997.9414046,0.00013812,2]
[340792151,1729829445729,-5795.4657366,0.00013821,2]
[340792152,1729829445739,-13184.51205498,0.00013822,2]
[340792153,1729829445748,-152.611521,0.00013822,2]
[340792154,1729829445757,-151.0,0.00013822,2]
[340792155,1729829445767,-203.93135,0.00013822,2]
[340792156,1729829445776,-2092.820839,0.00013822,2]
[340792157,1729829445787,-151.0,0.00013822,2]
[340792158,1729829445796,-151.0,0.00013822,2]
[340792159,1729829445806,-2092.820839,0.00013822,2]
[340792161,1729829445816,-151.0,0.00013822,2]
[340792162,1729829445825,-152.18136,0.00013822,2]
[340792163,1729829445834,-151.0,0.00013822,2]
[340792164,1729829445846,-151.0,0.00013822,2]
[340792165,1729829445856,-151.0,0.00013822,2]
[340792166,1729829445867,-303.323344,0.00013822,2]
[340792167,1729829445877,-303.323344,0.00013822,2]
[340792168,1729829445887,-151.0,0.00013822,2]
[340792169,1729829445899,-669.897057,0.00013822,2]
[340792170,1729829445911,-669.897057,0.00013822,2]
[340792171,1729829445923,-151.0,0.00013822,2]
[340792172,1729829445934,-151.0,0.00013822,2]
[340792173,1729829445944,-151.0,0.00013822,2]
[340792174,1729829445956,-151.0,0.00013822,2]
[340792175,1729829446122,-1453.50042473,0.00013822,2]
[340792176,1729829446313,-1546.78600054,0.00013822,2]
[340792177,1729829446325,-7997.65497933,0.00013822,2]
[340792178,1729829446335,-24.23162409,0.00013832,2]
[340792179,1729829446347,-1913.10538877,0.00013832,2]
[340792180,1729829446840,-495.64305827,0.00013698,2]
[340792184,1729830142285,1000.0,0.000138,5]
[340792204,1729830603159,262.6904205,0.00010403,5]
[340792252,1729830631949,-300.0,0.00012401,2]
[340792253,1729830631959,-300.0,0.00012401,2]
[340792254,1729830631968,-23653.0050717,0.00012402,2]
[340792255,1729830631978,-453.4020165,0.00012511,2]
[340792256,1729830631988,-465.21316509,0.00013487,2]
[340792257,1729830631998,-420.0,0.00013608,2]
[340792258,1729830632008,-1359.47572937,0.00013618,2]
[340792260,1729830632027,-645.25134252,0.00013618,2]
[340792261,1729830632036,-420.0,0.00013641,2]
[340792262,1729830632046,-500.0,0.00013673,2]
[340792263,1729830632055,-500.0,0.00013673,2]
[340792264,1729830632065,-278.1277109,0.00013678,2]
[340792265,1729830632074,-161.62094659,0.00013678,2]
[340792315,1729830640206,-6572.59822849,0.00013578,2]
[340792316,1729830640216,-500.0,0.00013673,2]
[340792317,1729830640226,-4254.27099586,0.00013678,2]
[340792318,1729830640238,-453.40201646,0.00013678,2]
[340792349,1729830645951,-677.8,0.00013516,2]
[340792350,1729830645965,-649.0,0.00013516,2]
[340792354,1729831628956,1297.3026174,0.0001,2]
[340792385,1729831832158,-250.0,0.00012225,2]
[340792386,1729831832169,-300.0,0.00012252,2]
[340792387,1729831832179,-300.0,0.00012252,2]
[340792388,1729831832191,-2137.80768588,0.00012253,2]
[340792403,1729831838168,-1537.53036691,0.00012253,2]
[340792404,1729831838180,-7118.83531321,0.00012253,2]
[340792405,1729831838189,-1002.72813498,0.00012299,2]
[340792406,1729831838332,-357.59622672,0.00012299,2]
[340792407,1729831838343,-453.54841635,0.00013128,2]
[340792408,1729831838360,-5281.11094608,0.00013412,2]
[340792409,1729831838369,-420.0,0.00013447,2]
[340792410,1729831838379,-420.0,0.00013477,2]
[340792411,1729831838389,-5751.02344992,0.00013578,2]
[340792412,1729831838398,-4311.48325474,0.00013585,2]
[340792413,1729831838408,-500.0,0.00013673,2]
[340792414,1729831838417,-500.0,0.00013673,2]
[340792415,1729831838426,-500.0,0.00013673,2]
[340792416,1729831838435,-260.7168839,0.00013673,2]
[340792417,1729831838445,-101748.294691,0.00013678,2]
[340792418,1729831838454,-16496.9121067,0.00013678,2]
[340792419,1729831838466,-5000.0,0.00013688,2]
[340792420,1729831838475,-229.439,0.00013688,2]
[340792421,1729831838485,-101748.294691,0.00013688,2]
[340792422,1729831838495,-11708.7793767,0.00013688,2]
[340792423,1729831838507,-3056.32234438,0.00013688,2]
[340792457,1729831840202,-1731.81038562,0.00013688,2]
[340792458,1729831840212,-15161.18961438,0.00013689,2]
[340792459,1729831840224,-1796.85950082,0.00013689,2]
[340792460,1729831840239,-2749.48535111,0.00013689,2]
[340792461,1729831840250,-500.0,0.00013698,2]
[340792462,1729831840260,-500.0,0.00013698,2]
[340792463,1729831840272,-500.0,0.00013698,2]
[340792464,1729831840526,-500.0,0.00013698,2]
[340792465,1729831840536,-500.0,0.00013698,2]
[340792466,1729831840546,-500.0,0.00013698,2]
[340792467,1729831840555,-195.25772934,0.00013698,2]
[340792468,1729831840564,-500.0,0.00013698,2]
[340792469,1729831840575,-568.01910963,0.00013698,2]
[340792470,1729831840585,-500.0,0.00013698,2]
[340792471,1729831840598,-500.0,0.00013698,2]
[340792472,1729831840608,-500.0,0.00013698,2]
[340792473,1729831840618,-309.87598866,0.00013698,2]
[340792474,1729831840628,-500.0,0.00013698,2]
[340792475,1729831840637,-500.0,0.00013698,2]
[340792476,1729831840646,-500.0,0.00013698,2]
[340792477,1729831840657,-362.63056757,0.00013698,2]
[340792478,1729831840666,-500.0,0.00013698,2]
[340792479,1729831840675,-500.0,0.00013698,2]
[340792480,1729831840685,-416.47036804,0.00013698,2]
[340792481,1729831840695,-159.32120652,0.00013698,2]
[340792482,1729831840705,-500.0,0.00013698,2]
[340792483,1729831840715,-501.24114615,0.00013698,2]
[340792484,1729831840725,-151.0,0.00013698,2]
[340792485,1729831840735,-500.0,0.00013698,2]
[340792486,1729831840744,-858.95,0.00013698,2]
[340792487,1729831840754,-500.0,0.00013698,2]
[340792488,1729831840764,-500.0,0.00013698,2]
[340792489,1729831840773,-1129.3,0.00013698,2]
[340792490,1729831840782,-1173.48,0.00013698,2]
[340792491,1729831840791,-882.97,0.00013698,2]
[340792492,1729831840801,-625.75,0.00013698,2]
[340792493,1729831840810,-471.38903216,0.00013698,2]
[340792494,1729831841008,-218.27096784,0.00013698,2]
[340792495,1729831841019,-500.0,0.00013698,2]
[340792496,1729831841028,-1350.48,0.00013698,2]
[340792497,1729831841038,-730.09,0.00013698,2]
[340792498,1729831841047,-302.63099049,0.00013698,2]
[340792499,1729831841057,-500.0,0.00013698,2]
[340792500,1729831841066,-745.23,0.00013698,2]
[340792501,1729831841075,-985.41,0.00013698,2]
[340792502,1729831841085,-527.41905516,0.00013698,2]
[340792503,1729831841094,-804.93,0.00013698,2]
[340792504,1729831841105,-500.0,0.00013698,2]
[340792505,1729831841114,-151.0,0.00013698,2]
[340792506,1729831841124,-469.713961,0.00013698,2]
[340792507,1729831841133,-500.0,0.00013698,2]
[340792508,1729831841142,-151.0,0.00013698,2]
[340792509,1729831841152,-500.0,0.00013698,2]
[340792510,1729831841171,-597.53,0.00013698,2]
[340792511,1729831841182,-500.0,0.00013698,2]
[340792512,1729831841192,-500.0,0.00013698,2]
[340792513,1729831841202,-500.0,0.00013698,2]
[340792514,1729831841213,-356.50916136,0.00013698,2]
[340792515,1729831841223,-500.0,0.00013698,2]
[340792516,1729831841233,-500.0,0.00013698,2]
[340792517,1729831841243,-700.39,0.00013698,2]
[340792518,1729831841253,-500.0,0.00013698,2]
[340792519,1729831841262,-582.86,0.00013698,2]
[340792520,1729831841273,-151.0,0.00013698,2]
[340792521,1729831841284,-500.0,0.00013698,2]
[340792522,1729831841294,-151.0,0.00013698,2]
[340792523,1729831841304,-500.0,0.00013698,2]
[340792524,1729831841314,-1368.37,0.00013698,2]
[340792525,1729831841324,-198.50227903,0.00013698,2]
[340792526,1729831841333,-595.11,0.00013698,2]
[340792527,1729831841343,-151.0,0.00013698,2]
[340792528,1729831841354,-500.0,0.00013698,2]
[340792529,1729831841365,-904.55,0.00013698,2]
[340792530,1729831841375,-500.0,0.00013698,2]
[340792531,1729831841384,-728.84,0.00013698,2]
[340792532,1729831841394,-500.0,0.00013698,2]
[340792533,1729831841405,-1194.65,0.00013698,2]
[340792534,1729831841415,-500.0,0.00013698,2]
[340792535,1729831841426,-542.12,0.00013698,2]
[340792536,1729831841436,-583.87,0.00013698,2]
[340792537,1729831841446,-500.0,0.00013698,2]
[340792538,1729831841458,-940.47,0.00013698,2]
[340792539,1729831841468,-1201.37,0.00013698,2]
[340792540,1729831841478,-151.0,0.00013698,2]
[340792541,1729831841488,-504.13961196,0.00013698,2]
[340792542,1729831841498,-151.0,0.00013698,2]
[340792543,1729831841509,-643.6,0.00013698,2]
[340792544,1729831841519,-832.21,0.00013698,2]
[340792545,1729831841530,-514.64,0.00013698,2]
[340792546,1729831841540,-500.0,0.00013698,2]
[340792547,1729831841550,-500.0,0.00013698,2]
[340792548,1729831841560,-500.0,0.00013698,2]
[340792549,1729831841570,-830.91,0.00013698,2]
[340792550,1729831841579,-500.0,0.00013698,2]
[340792551,1729831841589,-151.0,0.00013698,2]
[340792552,1729831841599,-151.0,0.00013698,2]
[340792553,1729831841610,-500.0,0.00013698,2]
[340792554,1729831841620,-151.0,0.00013698,2]
[340792555,1729831841630,-151.0,0.00013698,2]
[340792556,1729831841639,-500.0,0.00013698,2]
[340792557,1729831841648,-2058.73,0.00013698,2]
[340792558,1729831841658,-151.0,0.00013698,2]
[340792559,1729831841668,-151.0,0.00013698,2]
[340792560,1729831841679,-500.0,0.00013698,2]
[340792561,1729831841688,-1301.55,0.00013698,2]
[340792562,1729831841698,-151.0,0.00013698,2]
[340792563,1729831841707,-151.0,0.00013698,2]
[340792564,1729831841717,-347.7135182,0.00013698,2]
[340792565,1729831841726,-500.0,0.00013698,2]
[340792566,1729831841736,-500.0,0.00013698,2]
[340792567,1729831841745,-662.98,0.00013698,2]
[340792568,1729831841755,-1360.56,0.00013698,2]
[340792569,1729831841766,-232.84857086,0.00013698,2]
[340792570,1729831841776,-128.81202465,0.00013698,2]
[340792579,1729831843176,-371.18797535,0.00013698,2]
[340792580,1729831843186,-500.0,0.00013698,2]
[340792581,1729831843195,-428.02553806,0.00013698,2]
[340792582,1729831843206,-500.0,0.00013698,2]
[340792583,1729831843216,-151.0,0.00013698,2]
[340792584,1729831843226,-723.83,0.00013698,2]
[340792585,1729831843236,-982.28,0.00013698,2]
[340792586,1729831843246,-754.46,0.00013698,2]
[340792587,1729831843256,-173.36837026,0.00013698,2]
[340792590,1729831843266,-151.0,0.00013698,2]
[340792591,1729831843281,-151.0,0.00013698,2]
[340792592,1729831843290,-704.19,0.00013698,2]
[340792593,1729831843301,-817.27,0.00013698,2]
[340792594,1729831843314,-490.43459498,0.00013698,2]
[340792595,1729831843327,-9.56540502,0.00013698,2]
[340792596,1729831843337,-500.0,0.00013698,2]
[340792597,1729831843347,-168.59459498,0.00013698,2]
[340792598,1729831843361,-360.36540502,0.00013698,2]
[340792599,1729831843375,-151.983355,0.00013698,2]
[340792600,1729831843385,-131.48707819,0.00013698,2]
[340792601,1729831843400,-505.51884002,0.00013698,2]
[340792602,1729831843415,-214.63408179,0.00013698,2]
[340792603,1729831843425,-2229.16097143,0.00013698,2]
[340792606,1729831846056,-642.50902857,0.00013698,2]
[340792607,1729831846066,-1412.69,0.00013698,2]
[340792608,1729831846076,-685.42,0.00013698,2]
[340792609,1729831846085,-1373.32,0.00013698,2]
[340792610,1729831846095,-2671.38,0.00013698,2]
[340792611,1729831846109,-500.0,0.00013698,2]
[340792612,1729831846118,-500.0,0.00013698,2]
[340792613,1729831846128,-1111.54,0.00013698,2]
[340792614,1729831846138,-151.0,0.00013698,2]
[340792615,1729831846148,-153.569316,0.00013698,2]
[340792616,1729831846158,-1329.33,0.00013698,2]
[340792617,1729831846167,-180.31988088,0.00013698,2]
[340792618,1729831846177,-500.0,0.00013698,2]
[340792619,1729831846186,-534.8,0.00013698,2]
[340792620,1729831846195,-2349.79,0.00013698,2]
[340792621,1729831846205,-500.0,0.00013698,2]
[340792622,1729831846214,-643.57,0.00013698,2]
[340792623,1729831846224,-500.0,0.00013698,2]
[340792624,1729831846233,-599.5,0.00013698,2]
[340792625,1729831846242,-500.0,0.00013698,2]
[340792626,1729831846252,-500.0,0.00013698,2]
[340792627,1729831846262,-151.0,0.00013698,2]
[340792628,1729831846272,-151.0,0.00013698,2]
[340792629,1729831846283,-151.0,0.00013698,2]
[340792630,1729831846292,-151.0,0.00013698,2]
[340792631,1729831846302,-151.0,0.00013698,2]
[340792632,1729831846312,-154.079263,0.00013698,2]
[340792633,1729831846321,-639.96,0.00013698,2]
[340792634,1729831846330,-740.66,0.00013698,2]
[340792635,1729831846339,-500.0,0.00013698,2]
[340792636,1729831846350,-151.0,0.00013698,2]
[340792637,1729831846360,-151.0,0.00013698,2]
[340792638,1729831846369,-500.0,0.00013698,2]
[340792639,1729831846379,-151.0,0.00013698,2]
[340792640,1729831846388,-151.0,0.00013698,2]
[340792641,1729831846398,-682.55,0.00013698,2]
[340792642,1729831846407,-151.0,0.00013698,2]
[340792643,1729831846418,-151.0,0.00013698,2]
[340792644,1729831846429,-151.0,0.00013698,2]
[340792645,1729831846438,-200.696922,0.00013698,2]
[340792646,1729831846448,-500.0,0.00013698,2]
[340792647,1729831846457,-355.6591055,0.00013698,2]
[340792648,1729831846473,-2.81154178,0.00013698,2]
[340792649,1729831846482,-307.09023564,0.00013698,2]
[340792706,1729833038656,-802.5597286,0.00012604,2]
[340792707,1729833038667,-5077.0103899,0.00012743,2]
[340792708,1729833038676,-465.01065826,0.00013454,2]
[340792709,1729833038686,-1559.45757682,0.00013585,2]
[340792710,1729833038696,-1000.0,0.00013599,2]
[340792711,1729833038707,-300.0,0.0001363,2]
[340792712,1729833038716,-300.0,0.0001363,2]
[340792713,1729833038725,-8828.99135111,0.00013631,2]
[340792714,1729833038735,-500.0,0.00013673,2]
[340792715,1729833038744,-500.0,0.00013673,2]
[340792717,1729833038755,-500.0,0.00013673,2]
[340792718,1729833038764,-500.0,0.00013673,2]
[340792719,1729833038774,-173.81125593,0.00013688,2]
[340792720,1729833038784,-25822.31147456,0.00013688,2]
[340792761,1729833046255,-1820.32591174,0.00013688,2]
[340792763,1729833099333,177.96,0.00010959,2]
[340792764,1729833109846,889.84,0.00010959,2]
[340792816,1729834236270,-1144.9713295,0.00012134,2]
[340792817,1729834236280,-295.9907674,0.00012263,2]
[340792818,1729834236289,-185.011754,0.00012292,2]
[340792819,1729834236299,-185.011754,0.00012325,2]
[340792820,1729834236308,-185.011754,0.00012359,2]
[340792821,1729834236318,-185.011754,0.00012393,2]
[340792822,1729834236327,-185.011754,0.00012427,2]
[340792823,1729834236336,-185.011754,0.0001246,2]
[340792824,1729834236347,-185.011754,0.00012494,2]
[340792825,1729834236356,-185.011754,0.00012528,2]
[340792826,1729834236365,-185.011754,0.00012561,2]
[340792827,1729834236374,-185.011754,0.00012595,2]
[340792828,1729834236383,-185.011754,0.00012629,2]
[340792829,1729834236392,-185.011754,0.00012662,2]
[340792830,1729834236401,-185.011754,0.00012696,2]
[340792831,1729834236410,-185.011754,0.0001273,2]
[340792832,1729834236420,-185.011754,0.00012764,2]
[340792833,1729834236429,-185.011754,0.00012797,2]
[340792834,1729834236438,-185.011754,0.00012831,2]
[340792835,1729834236447,-154.0,0.0001284,2]
[340792836,1729834236457,-185.011754,0.00012865,2]
[340792837,1729834236466,-185.011754,0.00012898,2]
[340792838,1729834236475,-185.011754,0.00012932,2]
[340792839,1729834236485,-1000.0,0.00013038,2]
[340792840,1729834236495,-300.0,0.00013038,2]
[340792841,1729834236504,-300.0,0.00013038,2]
[340792842,1729834236513,-1833.2977132,0.0001311,2]
[340792843,1729834236522,-4521.760118,0.00013398,2]
[340792844,1729834236531,-5032.14551868,0.00013588,2]
[340792845,1729834236540,-1004.38592493,0.00013591,2]
[340792846,1729834236549,-1833.2977132,0.0001361,2]
[340792847,1729834236559,-3059.33981891,0.0001363,2]
[340792848,1729834236568,-500.0,0.00013673,2]
[340792849,1729834236577,-500.0,0.00013673,2]
[340792850,1729834236586,-173.81125593,0.00013688,2]
[340792851,1729834236596,-221.983,0.00013688,2]
[340792852,1729834236605,-37738.34281097,0.00013688,2]
[340792876,1729834238816,-3508.18876588,0.00013688,2]
[340792877,1729834238829,-257.09,0.00013688,2]
[340792878,1729834238841,-319.2398709,0.00013688,2]
[340792895,1729834240553,-16686.16178195,0.00013688,2]
[340792897,1729834240563,-270253.756582,0.00013688,2]
[340792899,1729834240573,-5850.90232297,0.00013689,2]
[340792901,1729834240582,-4205.87066465,0.00013697,2]
[340792903,1729834240592,-253.8413973,0.00013698,2]
[340792905,1729834240601,-291.52925763,0.00013698,2]
[340792908,1729834240611,-500.0,0.00013698,2]
[340792910,1729834240620,-500.0,0.00013698,2]
[340792912,1729834240630,-161.52484456,0.00013698,2]
[340792914,1729834240643,-151.0,0.00013698,2]
[340792916,1729834240653,-151.0,0.00013698,2]
[340792918,1729834240663,-158.055035,0.00013698,2]
[340792920,1729834240672,-500.0,0.00013698,2]
[340792922,1729834240681,-500.0,0.00013698,2]
[340792924,1729834240691,-151.0,0.00013698,2]
[340792926,1729834240700,-151.0,0.00013698,2]
[340792928,1729834240710,-151.0,0.00013698,2]
[340792930,1729834240721,-151.0,0.00013698,2]
[340792932,1729834240731,-151.0,0.00013698,2]
[340792934,1729834240743,-670.0,0.00013698,2]
[340792936,1729834240752,-151.0,0.00013698,2]
[340792938,1729834240761,-151.0,0.00013698,2]
[340792940,1729834240771,-151.0,0.00013698,2]
[340792943,1729834240781,-151.0,0.00013698,2]
[340792945,1729834240791,-151.0,0.00013698,2]
[340792947,1729834240800,-256.575884,0.00013698,2]
[340792949,1729834240809,-1014.07,0.00013698,2]
[340792951,1729834240819,-500.0,0.00013698,2]
[340792953,1729834240827,-500.0,0.00013698,2]
[340792955,1729834240837,-500.0,0.00013698,2]
[340792956,1729834240847,-500.0,0.00013698,2]
[340792957,1729834240857,-340.72114217,0.00013698,2]
[340792958,1729834240866,-500.0,0.00013698,2]
[340792959,1729834240875,-742.39,0.00013698,2]
[340792960,1729834240885,-624.94,0.00013698,2]
[340792961,1729834240894,-906.93,0.00013698,2]
[340792962,1729834240903,-500.0,0.00013698,2]
[340792963,1729834240913,-500.0,0.00013698,2]
[340792964,1729834240923,-1461.14,0.00013698,2]
[340792965,1729834240933,-500.0,0.00013698,2]
[340792966,1729834240944,-500.0,0.00013698,2]
[340792967,1729834240955,-500.0,0.00013698,2]
[340792968,1729834240966,-500.0,0.00013698,2]
[340792969,1729834240975,-500.0,0.00013698,2]
[340792970,1729834240985,-151.0,0.00013698,2]
[340792971,1729834240995,-151.0,0.00013698,2]
[340792972,1729834241004,-151.0,0.00013698,2]
[340792973,1729834241015,-151.0,0.00013698,2]
[340792974,1729834241024,-151.0,0.00013698,2]
[340792975,1729834241034,-151.0,0.00013698,2]
[340792976,1729834241044,-151.0,0.00013698,2]
[340792977,1729834241055,-151.0,0.00013698,2]
[340792978,1729834241064,-151.0,0.00013698,2]
[340792979,1729834241074,-190.244391,0.00013698,2]
[340792980,1729834241083,-649.01041378,0.00013698,2]
[340792981,1729834241093,-772.96,0.00013698,2]
[340792982,1729834241103,-500.0,0.00013698,2]
[340792983,1729834241112,-500.0,0.00013698,2]
[340792984,1729834241123,-284.65454611,0.00013698,2]
[340792985,1729834241133,-500.0,0.00013698,2]
[340792986,1729834241143,-500.0,0.00013698,2]
[340792987,1729834241152,-860.53,0.00013698,2]
[340792988,1729834241161,-500.0,0.00013698,2]